Cogmind - Beta 10.1 @@@ ROGUE MODE // 2020.09.20 @ 18:35:03 Player: Morgweiler Result: Destroyed by G-47 Trooper with Particle Gun Performance ------------- Evolutions (0) 0 Regions Visited (1) 200 Robots Destroyed (10) 50 Value Destroyed (279) 279 Prototype IDs (0) 0 Alien Tech Used (0) 0 Bonus (0) 0 TOTAL SCORE: 529 Bonus ------- None Cogmind --------- Core Integrity 0/250 Matter 300/300 Energy 100/100 System Corruption 0% Temperature Cool (9) Movement Core (100) Ox1 Location -10/Materials Parts ------- > --- POWER (1) -------- (None) > --- PROPULSION (2) --- (None) > --- UTILITY (2) ------ Small Storage Unit > --- WEAPON (2) ------- (None) > --- INVENTORY (6) ---- Ion Engine Aluminum Leg Wheel Improved Terrain Scanner Peak State ------------ > --- POWER ------------ Light Ion Engine > --- PROPULSION ------- Wheel Wheel > --- UTILITY ---------- Small Storage Unit Improved Terrain Scanner > --- WEAPON ----------- EM Pulse Gun Small Laser > --- INVENTORY -------- Ion Engine Light Treads Light Treads Small Laser [Rating: 8] Favorites ----------- Power Ion Engine Engine Ion Engine Propulsion Light Treads Treads Light Treads Leg Aluminum Leg Wheel Wheel Utility Small Storage Unit Device Sensor Array Storage Small Storage Unit Weapon Small Laser Energy Gun Small Laser Special Weapon Mining Laser Build | -11 -10 ------- Run | Scr Mat Slots Evolved . | . . Power . | . . Propulsion . | . . Utility . | . . Weapon . | . . Parts Attached 21 | 8 13 Power 2 | 1 1 Engine 2 | 1 1 Core . | . . Reactor . | . . Propulsion 7 | 2 5 Treads 4 | . 4 Leg 1 | . 1 Wheel 2 | 2 . Hover . | . . Flight . | . . Utility 4 | 2 2 Device 3 | 1 2 Storage 1 | 1 . Processor . | . . Hackware . | . . Protection . | . . Artifact . | . . Weapon 8 | 3 5 Energy Gun 6 | 3 3 Energy Cannon . | . . Ballistic Gun . | . . Ballistic Cannon . | . . Launcher . | . . Special Weapon 2 | . 2 Impact Weapon . | . . Slashing Weapon . | . . Piercing Weapon . | . . Special Melee Weapon . | . . Unidentified Prototypes . | . . Parts Lost 13 | . 13 Power 1 | . 1 Propulsion 5 | . 5 Utility 2 | . 2 Weapon 5 | . 5 Highest Loss Streak 7 | . 7 Average Slot Usage (%) 91 | . 91 Engine 13 | . 13 Treads 17 | . 17 Wheel 7 | . 7 Device 13 | . 13 Storage 14 | . 14 Energy Gun 20 | . 20 Special Weapon 2 | . 2 Naked Turns . | . . Heaviest Build 12 | 11 12 Greatest Support 40 | 20 40 Greatest Overweight (x) 3 | . 3 Average Overweight (x) . | . . Largest Inventory Capacity 6 | 6 6 Average Capacity 5 | 5 6 Most Carried 6 | 6 6 Average Carried 4 | 2 4 Final Capacity 6 | 6 6 Final Carried 6 | 6 4 Class Distribution -------------------- 100% | Mutant Dominant Class ---------------- Mutant | -10/Materials Resources | -11 -10 ----------- Run | Scr Mat Matter Collected 372 | 280 92 Remotely . | . . Salvage Created 370 | 128 242 Parts 22 | 6 16 Haulers Intercepted 1 | . 1 Recyclers Shooed . | . . Parts Field Recycled . | . . Retrieved Matter . | . . Parts Self-Destructed . | . . Prevented . | . . Kills | -11 -10 ------- Run | Scr Mat Combat Hostiles Destroyed 7 | . 7 Guns 4 | . 4 Cannons 3 | . 3 Classes Destroyed 4 | 2 2 Tunneler 1 | 1 . Hauler 1 | . 1 Recycler 1 | 1 . Grunt 7 | . 7 Best Kill Streak 4 | 2 4 Combat Bots Only 4 | . 4 Max Kills in Single Turn 1 | 1 1 Gunslinging . | . . Exploded . | . . Melee . | . . Uniques/NPCs Destroyed . | . . Combat | -11 -10 -------- Run | Scr Mat Damage Taken 1282 | . 1282 Core 254 | . 254 Absorbed by Shields . | . . Core Remaining (%) 100 | 100 . Volleys Fired 56 | 5 51 Largest 2 | 2 2 Hottest 140 | 80 140 Shots Fired 90 | 10 80 Gun 83 | 10 73 Cannon . | . . Launcher . | . . Special 7 | . 7 Kinetic . | . . Thermal 76 | 5 71 Explosive . | . . Electromagnetic 14 | 5 9 Robot Hit Streak 9 | 5 9 Robot Miss Streak 4 | 1 4 Penetration Max . | . . Secondary Targets . | . . Shots Hit Robots 65 | 7 58 Core Hits 29 | 2 27 Critical Hits . | . . Critical Kills . | . . Critical Parts Destroyed . | . . Melee Attacks . | . . Impact . | . . Slashing . | . . Piercing . | . . Sneak Attacks . | . . Combat Hostiles . | . . Follow-up Attacks . | . . Damage Inflicted 876 | 76 800 Guns 688 | 76 612 Cannons . | . . Explosions . | . . Melee . | . . Ramming 20 | . 20 Kinetic . | . . Thermal 713 | 21 692 Explosive . | . . Electromagnetic 143 | 55 88 Impact . | . . Slashing . | . . Piercing . | . . Highest Corruption . | . . Average Corruption . | . . Corruption Purged . | . . Overload Shots . | . . Overflow Damage . | . . Projectiles . | . . Explosions . | . . Melee . | . . Knockbacks . | . . Impact . | . . Kinetic . | . . Secondary . | . . Self-Inflicted Damage 1 | . 1 Shots . | . . Rammed 19 | . 19 Targets Rammed 19 | . 19 Kicked . | . . Crushed . | . . Highest Temperature 379 | 56 379 Average Temperature 149 | 25 162 Received Heat Transfer 735 | . 735 Effects 4 | . 4 Shutdowns 1 | . 1 Energy Bleed 1 | . 1 Matter Decay 1 | . 1 Damage (minor) 1 | . 1 Siege Activations . | . . Robots Corrupted . | . . Combat Hostiles . | . . Parts Fried 1 | . 1 Impact Corruptions . | . . Robots Melted . | . . Combat Hostiles . | . . Parts Melted 2 | . 2 Heat Transferred 1575 | 50 1525 Parts Sabotaged . | . . Parts Stolen . | . . Parts Stripped . | . . Power Chain Reactions . | . . Missiles Intercepted . | . . Alert | -11 -10 ------- Run | Scr Mat Peak Influence 102 | 10 102 Initial 6 | . 6 Average 35 | 3 40 Maximum Alert Level . | . . Low Security (%) 100 | 100 100 Level 1 . | . . Level 2 . | . . Level 3 . | . . Level 4 . | . . Level 5 . | . . High Security . | . . Max Security . | . . Squads Dispatched 2 | . 2 Investigation 1 | . 1 Extermination . | . . Reinforcement 1 | . 1 Assault . | . . Garrison . | . . Intercept . | . . Construction Impeded . | . . Haulers Reinforced . | . . Stealth | -11 -10 --------- Run | Scr Mat Distress Signals 2 | . 2 Communications Jammed . | . . Distress Signals . | . . Times Spotted 21 | . 21 Peak Tracking Total 7 | . 7 Tactical Retreats 2 | . 2 Traps | -11 -10 ------- Run | Scr Mat Traps Triggered 1 | . 1 Indirectly . | . . Trap Hack Attempts . | . . Triggered . | . . Disarmed . | . . Reprogrammed . | . . Reused . | . . Traps Extracted . | . . Installed . | . . Triggered . | . . Machines | -11 -10 ---------- Run | Scr Mat Machines Disabled . | . . Max in Single Turn . | . . Machines Sabotaged . | . . Garrisons Compromised . | . . Overloaded Fab Kills . | . . Fab Network Shutdowns . | . . Hacking | -11 -10 --------- Run | Scr Mat Machines Accessed 2 | . 2 Terminals 1 | . 1 Fabricators . | . . Repair Stations . | . . Recycling Units 1 | . 1 Scanalyzers . | . . Garrison Access . | . . Total Hacks 7 | . 7 Successful 4 | . 4 Failed 3 | . 3 Catastrophic 1 | . 1 Database Lockouts . | . . Manual . | . . Terminals 6 | . 6 Fabricators . | . . Repair Stations . | . . Recycling Units 1 | . 1 Scanalyzers . | . . Garrison Access . | . . Terminal Hacks 3 | . 3 Branch Access Points 1 | . 1 Unreport Threat 2 | . 2 Fabricator Hacks . | . . Repair Station Hacks . | . . Recycling Unit Hacks 1 | . 1 Retrieve Components 1 | . 1 Scanalyzer . | . . Garrison Access Hacks . | . . Unauthorized Hacks . | . . Terminals . | . . Fabricators . | . . Repair Stations . | . . Recycling Units . | . . Scanalyzers . | . . Garrison Access . | . . Data Cores Recovered . | . . Used . | . . Hacking Detections 1 | . 1 Full Trace Events . | . . Feedback Events . | . . Feedback Blocked . | . . Robot Schematics Acquired . | . . Robots Built . | . . Matter . | . . Time . | . . Total Robot Build Rating . | . . Part Schematics Acquired . | . . Parts Built . | . . Matter . | . . Time . | . . Total Part Build Rating . | . . Parts Repaired . | . . Time . | . . Parts Recycled . | . . Recycled Matter . | . . Retrieved Matter . | . . Retrieved Components 3 | . 3 Parts Scanalyzed . | . . Part Schematics Acquired . | . . Parts Damaged . | . . Bothacking | -11 -10 ------------ Run | Scr Mat Used RIF Installer . | . . Robots Hacked . | . . Non-combat . | . . Combat . | . . Robot Hacks Applied . | . . Relay Couplers Released . | . . Robots Rewired . | . . Allies Hacked . | . . Hacks Repelled . | . . Allies | -11 -10 -------- Run | Scr Mat Total Allies . | . . Largest Group . | . . Highest-Rated Group . | . . Highest-Rated Ally . | . . Total Orders . | . . Ally Attacks . | . . Total Damage . | . . Kills . | . . Allies Corrupted . | . . Allies Melted . | . . Intel | -11 -10 ------- Run | Scr Mat Robot Analysis Total . | . . Derelict Logs Recovered . | . . Drone Launches . | . . Drone Recoveries . | . . Exploration | -11 -10 ------------- Run | Scr Mat Turns Passed 574 | 74 500 Spaces Moved 278 | 53 225 Core 7 | 3 4 Treads 127 | . 127 Legs . | . . Wheels 144 | 50 94 Hover . | . . Flight . | . . Fastest Speed 50 | 50 80 Average Speed 117 | 78 126 Slowest Speed 200 | 80 200 Overloaded Moves . | . . Propulsion Burnouts . | . . Robots Hopped . | . . Cave-ins Triggered . | . . Exploration Rate (%) 16 | 5 27 Regions Visited 1 Branch Regions . Pre-discovered Areas . | . . Known Exits Taken . | . . Unknown Exits Taken 1 | 1 . Scrap Searched . | . . Spaces Dug . | . . Terrain Destroyed . | . . Melee . | . . Projectile . | . . AOE . | . . Terrain Rammed . | . . Walls Destroyed . | . . Machines Disabled . | . . Actions | -11 -10 --------- Run | Scr Mat Total 405 | 71 334 Wait 17 | . 17 Move 277 | 52 225 Hop . | . . Pick Up 11 | 6 5 Fast Attach 9 | 7 2 Attach 5 | . 5 Detach . | . . Swap 7 | 1 6 Drop 4 | . 4 Fire 56 | 5 51 Melee . | . . Ram 3 | . 3 Kick . | . . Crush 16 | . 16 Escape Stasis . | . . Rewire . | . . Trap . | . . Miscellaneous . | . . Route ------- -11/Scrapyard -10/Materials (discovered 2 exits: Min x2) History --------- Turn | Location | Event 19 | -11/Scrapyard | Discovered new exit (range 16) 75 | -11/Scrapyard | Entered Materials 88 | -10/Materials | Identified exit to Mines 239 | -10/Materials | Lost 4 parts (2n2w) 308 | -10/Materials | Build established: Mutant 544 | -10/Materials | Core integrity fell below 50% 570 | -10/Materials | Core integrity fell below 20% 575 | -10/Materials | Destroyed by G-47 Trooper with Particle Gun Last Messages --------------- 00537_ Lgt. Treads destroyed. 00538_ Mining Laser destroyed. 00542_ Ion Engine destroyed. 00542_ Slammed into G-34 Mercenary. 00545_ Acquired 12 matter. 00545_ Slammed into G-34 Mercenary. 00550_ W-16 Scout sends out distress signal. 00552_ Slammed into G-34 Mercenary. 00558_ K-01 Serf collects debris. 00561_ Slammed into G-34 Mercenary. 00562_ K-01 Serf collects debris. 00563_ Slammed into G-34 Mercenary. 00567_ U-05 Engineer lays Concrete. 00567_ Lgt. Treads destroyed. 00569_ U-05 Engineer lays Concrete. 00569_ Slammed into G-47 Trooper. 00572_ Lgt. Treads destroyed. 00572_ Slammed into G-47 Trooper. 00573_ Heat Sink destroyed. 00573_ Slammed into G-47 Trooper. Map ----- +----------------------------------------------------+ | ?????????????????????????????????????????????????? | | ?????????????????????????????????????????????????? | | ?????????????????????????????????????????????????? | | ?????????????????????????????????????????????????? | | ?????????????????????????????????????????????????? | | ?????????????????????????????????????????????????? | | ?????????????????????????????????????????????????? | | ?????????????????????????????????????????????????? | | ?????????????????????????????????????????????????? | | ?????????????>??????? ??????? ???????????????? | | ????????????????????# ??????? ???????????????? | | ????????????????????# #?????# #??????????????? | | ????????????????????# #?????# #??????????????? | | ???????????????????## ##????# #??????????????? | | ?????????????????### #????# #??????????????? | | ?????????????????? #????# #??????????????? | | ?????????????????? #????# #??????????????? | | ??????????????????? #????# #??????????????? | | ???????????????????? ?????# #??????????????? | | ????????????????????# #?????# #??????????????? | | ????????????????????# #?????# #??????????????? | | ????????????????????# #?????# #??????????????? | | ????????????????????# #?????# ##########+###?? | | ???????????????????## %##????# ? | | ???????????????????# % %%###### ? | | ???????????????????#%%wg%@g% k% ? | | ???????????????????#%%u%%#######+##### ####????? | | ????????????? %% %#?# #???#???????? | | ????????????######## #?# #???????????? | | ???????????????????###/###?# """ #???????????? | | ????????????????????? w????# """"" #???????????? | | ????????????????????"" ????# """"" #???????????? | | ???????????????????"R"?????# """"" #???????????? | | ?????????????????? " "?????# """ #???????????? | | ??????????????????? ?????# #???????????? | | ???????????????????????????#######/###???????????? | | ?????????????????????????????????#%#?????????????? | | ?????????????????????????????????# #?????????????? | | ??????????????###########????????# #?????????????? | | ??????????????# #????????# #?????????????? | | ??????????????# ########## ##### ###?????? | | ??????????????# + ? | | ??????????????# # #######???????? | | ???????#??????# # #?????????????? | | ??????????????# + #?????????????? | | ??????????????# #### ##### #?????????????? | | ??????????????# % #??# #???# #?????????????? | | ??????######??####/######??# #???# #?????????????? | | ??????# #??#?# %!#??????# #???#+#?????????????? | | ??????#"" ###### ##?????# #???????????????????? | +----------------------------------------------------+ Best States ------------- Heat Dissipation 35 Energy Generation 10 Energy Capacity 250 Matter Stores 300 Matter Capacity 300 Sight Range 16 Robot Scan Range 10 Terrain Scan Range 16 Terrain Scan Density 10 Evasion (%) 44 Recoil Reduction 2 Item Schematics ----------------- None Robot Schematics ------------------ None Fabricated ------------ Nothing Alien Tech Used ----------------- None Achievements -------------- None Challenges ------------ None Game ------ Seed MolecularFieldDoublenader Manual? 0 Play Time 00:08:46 Cumulative 30.7 hours Start 2020.09.20 @ 18:26:47 End 2020.09.20 @ 18:35:03 Sessions 1 Manual Loads 0 Difficulty Rogue Special Mode None Game No. 32 Rogue 23 Adventurer 4 Explorer 5 Win Type - Total 0 Types 0/0/0/0/0/0/0/0/0 Lore% 19 Gallery% 30 Achievement% 22 Wizard Run 0 Options --------- ASCII 0 Keyboard 1 Movement Numpad Keybinds 0 Fullscreen 2 Font 18/SmallcapsGlow Map View 76x50 Tactical HUD 1 Map Filters NONE Filters NONE Steam 1 RUN: 54dfbc5c-ac4a-4904-8520-51a3a72e4053